{"text_format":"3","workbook":"xlsx","n_sheets":1,"sheets":["Предмет"],"not_rendered":{"external_links":1,"defined_names":8},"read":"whole","date_system":"1900"}

{"sheet":"Предмет","index":0,"n_rows":17,"n_cols":16,"rows_kept":17}
["№","СНИЛС","Фамилия","Имя","Отчество","Пол","Дата рождения","Участник с ОВЗ","Класс","Класс участия","Балл","Макс. Балл","Статус","Призер МЭ прошлого года","Учитель","Место работы учителя"]
[1,2,3,4,5,6,7,8,9,10,11,12,13,14,15,16]
[1,null,"Гарипова ","Милана","Руслановна","ж",null,"нет",8,8,20,35,"призер","да","Салимуллина О.В.","МБОУ СОШ №2"]
[2,null,"Елхов","Даниэль","Владимирович","м",null,"нет",8,8,14,35,"участник","нет","Салимуллина О.В.","МБОУ СОШ №2"]
[3,null,"Липина","Евгения","Евгеньевна","ж",null,"нет",8,8,20,35,"призер","нет","Попова Е.С.","МБОУ СОШ №2"]
[4,null,"Гилемова ","Айгуль","Фархадовна","ж",null,"нет",10,10,28,56,"призер","нет","Салимуллина О.В.","МБОУ СОШ №2"]
[5,null,"Косимова","Манзума","Мухаммадовна","ж",null,"нет",10,10,10,56,"участник","нет","Салимуллина О.В.","МБОУ СОШ №2"]
[6,null,"Хныкин","Кирилл","Евгеньевич","м",null,"нет",10,10,36,56,"призер","нет","Салимуллина О.В.","МБОУ СОШ №2"]
[7,null,"Титова ","Валерия","Артемовна","ж",null,"нет",11,11,18,51,"участник","нет","Салимуллина О.В.","МБОУ СОШ №2"]
[8,null,"Симанова","Анна","Дмитриевна","ж",null,"нет",11,11,22,51,"участник","нет","Салимуллина О.В.","МБОУ СОШ №2"]
[9,null,"Хабибуллина","Диляра","руслановна","ж",null,"нет",11,11,11,51,"участник","нет","Салимуллина О.В.","МБОУ СОШ №2"]
[10,null,{"$f":"[1]Предмет!C7","v":"Винокурова"},{"$f":"[1]Предмет!D7","v":"Евгения"},{"$f":"[1]Предмет!E7","v":"Николаевна"},{"$f":"[1]Предмет!F7","v":"ж"},null,{"$f":"[1]Предмет!H7","v":"нет"},{"$f":"[1]Предмет!I7","v":7},{"$f":"[1]Предмет!J7","v":7},18,35,{"$f":"[1]Предмет!M7","v":"призер"},{"$f":"[1]Предмет!N7","v":"нет"},{"$f":"[1]Предмет!O7","v":"Салимуллина О.В."},{"$f":"[1]Предмет!P7","v":"МБОУ СОШ №2"}]
[11,null,{"$f":"[1]Предмет!C8","v":"Баскакова"},{"$f":"[1]Предмет!D8","v":"Ева"},{"$f":"[1]Предмет!E8","v":"Станиславовна"},{"$f":"[1]Предмет!F8","v":"ж"},null,{"$f":"[1]Предмет!H8","v":"нет"},{"$f":"[1]Предмет!I8","v":7},{"$f":"[1]Предмет!J8","v":7},19,35,{"$f":"[1]Предмет!M8","v":"призер"},{"$f":"[1]Предмет!N8","v":"нет"},{"$f":"[1]Предмет!O8","v":"Салимуллина О.В."},{"$f":"[1]Предмет!P8","v":"МБОУ СОШ №2"}]
[12,null,{"$f":"[1]Предмет!C9","v":"Федотова"},{"$f":"[1]Предмет!D9","v":"Самира"},{"$f":"[1]Предмет!E9","v":"Витальевна"},{"$f":"[1]Предмет!F9","v":"ж"},null,{"$f":"[1]Предмет!H9","v":"нет"},{"$f":"[1]Предмет!I9","v":7},{"$f":"[1]Предмет!J9","v":7},11,35,"участник",{"$f":"[1]Предмет!N9","v":"нет"},{"$f":"[1]Предмет!O9","v":"Салимуллина О.В."},{"$f":"[1]Предмет!P9","v":"МБОУ СОШ №2"}]
[13,null,"Паршакова","Агата","Евгеньевна","ж",null,"нет",9,9,16,47,"участник","нет","Салимуллина О.В.","МБОУ СОШ №2"]
[14,null,"Попова","Ева","Олеговна","ж",null,"нет",7,7,27,35,"призер","нет","Попова Е.С.","МБОУ СОШ №2"]
[15,null,"Вильданова Айгуль",null,"Ильдаровна","ж",null,"нет",9,9,33,47,"призер","нет","Попова Е.С.","МБОУ СОШ №2"]